fUSD/lending_fUSD_20260529
["ID","MTS","AMOUNT","RATE_DAILY","PERIOD"]
[423306453,1780044649000,-500.0,0.00024658,2]
[423306490,1780044649000,-1220.315358,0.000248,2]
[423306458,1780044649000,-500.0,0.00024658,2]
[423306494,1780044649000,-151.0,0.000248,2]
[423306518,1780044649000,-932.0,0.000249,2]
[423306520,1780044649000,-342.26868169,0.00024932,2]
[423306519,1780044649000,-418.0,0.000249,2]
[423306517,1780044649000,-1007.0,0.000249,2]
[423306522,1780044649000,-1115.39,0.00024941,7]
[423306521,1780044649000,-273.29872968,0.00024932,2]
[423306527,1780044649000,-300.0,0.00024999,10]
[423306524,1780044649000,-169.465949,0.00024997,7]
[423306523,1780044649000,-151.97,0.00024959,2]
[423306516,1780044649000,-2513.0,0.000249,2]
[423306525,1780044649000,-300.0,0.00024999,10]
[423306529,1780044649000,-300.0,0.00024999,10]
[423306531,1780044649000,-300.0,0.00024999,10]
[423306530,1780044649000,-300.0,0.00024999,10]
[423306528,1780044649000,-300.0,0.00024999,10]
[423306532,1780044649000,-300.0,0.00024999,10]
[423306534,1780044649000,-20821.97830126,0.00025,2]
[423306533,1780044649000,-666.0,0.00024999,2]
[423306535,1780044649000,-182536.32953384,0.00025,2]
[423306491,1780044649000,-1220.315358,0.000248,2]
[423306526,1780044649000,-300.0,0.00024999,10]
[423306515,1780044649000,-1074.0,0.000249,2]
[423306476,1780044649000,-666.0,0.00024799,2]
[423306514,1780044649000,-619.0,0.000249,2]
[423306513,1780044649000,-798.44,0.00024886,7]
[423306492,1780044649000,-1220.315358,0.000248,2]
[423306497,1780044649000,-2781.82699784,0.00024811,2]
[423306496,1780044649000,-1910.18787185,0.00024811,2]
[423306498,1780044649000,-152.0,0.00024857,10]
[423306495,1780044649000,-286.484303,0.000248,2]
[423306499,1780044649000,-300.0,0.0002486,10]
[423306503,1780044649000,-300.0,0.0002486,10]
[423306500,1780044649000,-300.0,0.0002486,10]
[423306502,1780044649000,-300.0,0.0002486,10]
[423306493,1780044649000,-1220.315358,0.000248,2]
[423306504,1780044649000,-300.0,0.0002486,10]
[423306501,1780044649000,-666.0,0.0002486,2]
[423306512,1780044649000,-695.44,0.00024886,7]
[423306510,1780044649000,-173.72,0.00024865,2]
[423306511,1780044649000,-2000.0,0.00024865,2]
[423306488,1780044649000,-151.0,0.000248,2]
[423306508,1780044649000,-300.0,0.0002486,10]
[423306507,1780044649000,-300.0,0.0002486,10]
[423306506,1780044649000,-300.0,0.0002486,10]
[423306505,1780044649000,-300.0,0.0002486,10]
[423306509,1780044649000,-666.0,0.0002486,2]
[423306536,1780044651000,-1490.0,0.00025,2]
[423306539,1780044652000,-150.0,0.00016977,2]
[423306537,1780044652000,-6066.0,0.000159,2]
[423306538,1780044652000,-150.0,0.00016169,2]
[423306540,1780044652000,-150.0,0.00017826,2]
[423306541,1780044652000,-150.0,0.00018718,2]
[423306542,1780044652000,-6066.0,0.000189,2]
[423306543,1780044652000,-151.0,0.00019178,2]
[423306544,1780044652000,-151.0,0.00019178,2]
[423306546,1780044652000,-151.0,0.00019178,2]
[423306548,1780044652000,-23409.76485146,0.00025,2]
[423306547,1780044652000,-151.0,0.00019178,2]
[423306550,1780044652000,-382.73686663,0.00025,2]
[423306545,1780044652000,-151.0,0.00019178,2]
[423306549,1780044652000,-2397.89119795,0.00025,2]
[423306551,1780044714000,1600.0,0.00024865,120]
[423306552,1780044715000,1600.0,0.00027125,120]
[423306555,1780044921000,805.0,0.00023942,120]
[423306556,1780044921000,805.0,0.00025139,120]
[423306557,1780044922000,805.0,0.00026396,120]
[423306558,1780044924000,805.0,0.00027715,120]
[423306559,1780044934000,162.0,0.00022802,120]
[423306560,1780044935000,162.0,0.00023942,120]
[423306561,1780044937000,162.0,0.00025139,120]
[423306562,1780044938000,162.0,0.00026396,120]
[423306563,1780044939000,162.0,0.00027716,120]
[423306565,1780045208000,483.0,0.00025211,120]
[423306566,1780045209000,483.0,0.00026472,120]
[423306567,1780045211000,483.0,0.00027795,120]
[423306568,1780045231000,163.0,0.00025342,120]
[423306569,1780045233000,163.0,0.00026609,120]
[423306570,1780045234000,163.0,0.0002794,120]
[423306577,1780045320000,223.18058698,0.0001,2]
[423306578,1780045381000,541.23,0.00027499,120]
[423306579,1780045388000,2330.248691,7.945e-05,2]
[423306587,1780045593000,640.0,0.00027125,120]
[423306586,1780045593000,640.0,0.00024865,120]
[423306590,1780045629000,-59.62676483,0.00012107,2]
[423306588,1780045629000,-150.0,0.00011498,2]
[423306589,1780045629000,-150.0,0.00011498,2]
[423306591,1780045648000,400.0,0.000117,4]
[423306592,1780045651000,900.0,0.000118,4]
[423306593,1780045652000,1400.0,0.000119,4]
[423306599,1780045747000,1000.0,0.00027939,120]
[423306600,1780045810000,338.0,0.0002524,120]
[423306601,1780045811000,338.0,0.00026502,120]
[423306602,1780045813000,338.0,0.00027827,120]
[423306604,1780045832000,-132.02477495,0.00012107,2]
[423306608,1780045832000,-1524.81032019,0.00012207,2]
[423306609,1780045832000,-313.34184775,0.00012207,2]
[423306616,1780045832000,-5711.73751277,0.00012307,2]
[423306612,1780045832000,-1320.6697525,0.00012306,3]
[423306614,1780045832000,-150.0,0.00012306,2]
[423306611,1780045832000,-215.5484138,0.00012242,2]
[423306606,1780045832000,-1128.20620053,0.00012207,2]
[423306615,1780045832000,-88152.90995334,0.00012307,2]
[423306605,1780045832000,-209.09056759,0.00012177,2]
[423306626,1780045832000,-1509.42632579,0.00012307,2]
[423306617,1780045832000,-599.30213,0.00012307,2]
[423306619,1780045832000,-339.58848932,0.00012307,2]
[423306610,1780045832000,-661.84783206,0.00012207,2]
[423306607,1780045832000,-202.26813674,0.00012207,2]
[423306618,1780045832000,-673.90711308,0.00012307,2]
[423306613,1780045832000,-1089.96619433,0.00012306,3]
[423306646,1780045840000,-634.53,0.00012207,2]
[423306654,1780045844000,-2849.49587438,0.00012207,2]
[423306655,1780045845000,-1245.61888089,0.00012207,2]
[423306713,1780045846000,-422.44138829,0.00012207,2]
[423306712,1780045846000,-231.30300953,0.00012207,2]
[423306840,1780045927000,245.43060937,0.0001165,7]
[423306841,1780045927000,156.86776104,0.00011421,7]
[423306843,1780045978000,1303.29,0.00028081,120]
[423306842,1780045978000,1303.29,0.00027549,120]
[423306845,1780046107000,183.9406873,0.00011421,7]
[423306846,1780046108000,203.0,0.00025726,120]
[423306847,1780046109000,203.0,0.00027012,120]
[423306848,1780046171000,4631.53166173,0.00011421,7]
[423306850,1780046172000,739.4,0.00028081,120]
[423306849,1780046172000,739.4,0.00027549,120]
[423306851,1780046198000,546.55,0.00027499,120]
[423306852,1780046199000,546.55,0.00028032,120]
[423306854,1780046214000,704.03,0.00028032,120]
[423306853,1780046214000,704.03,0.00027499,120]
[423306855,1780046215000,686.16297472,0.00028,120]
[423306856,1780046275000,2500.0,0.0002808,120]
[423306857,1780046323000,2016.43004589,0.00028082,120]
[423306860,1780046425000,1216.0,0.00027125,120]
[423306859,1780046425000,1216.0,0.00024865,120]
[423306861,1780046454000,-216.34435231,0.00011659,2]
[423306862,1780046507000,-177.62054803,0.00011659,2]
[423306863,1780046561000,-160.0,0.00012052,2]
[423306864,1780046614000,-160.0,0.00012056,2]
[423306865,1780046618000,330.74,0.0002808,120]
[423306866,1780046666000,-160.0,0.0001206,2]
[423306867,1780046720000,-266.5998,0.00012107,2]
[423306869,1780046721000,174.0,0.00027646,120]
[423306868,1780046721000,174.0,0.00026329,120]
[423306870,1780046773000,-614.19290441,0.00012198,2]
[423306872,1780046779000,479.18442925,0.00028032,120]
[423306871,1780046779000,500.0,0.00027499,120]
[423306873,1780046827000,-1473.28893408,0.00012207,2]
[423306874,1780046853000,-1165.63684784,0.00012207,2]
[423306875,1780046854000,-401.00586351,0.00012207,2]
[423306876,1780046935000,500.0,0.00027499,120]
[423306877,1780046935000,500.0,0.00028032,120]
[423306878,1780046940000,1000.0,0.00028081,120]
[423306879,1780046943000,714.94318331,0.0002,120]
[423306880,1780047002000,264.55,0.0001,2]
[423306881,1780047009000,175.0,0.00027279,120]
[423306911,1780047033000,-61654.55357122,0.00012107,2]
[423306908,1780047033000,-2691.44527071,0.00012098,2]
[423306912,1780047033000,-959.58057949,0.00012107,2]
[423306910,1780047033000,-561613.43403887,0.00012107,2]
[423306909,1780047033000,-154.20200636,0.00012107,2]
[423306913,1780047034000,-443.208,0.00012107,2]
[423306914,1780047034000,-322.52799999,0.00012107,2]
[423306917,1780047038000,-1324.42145,0.00012107,2]
[423306919,1780047038000,-16467.35030072,0.00012107,2]
[423306922,1780047038000,-1165.63684784,0.00012107,2]
[423306918,1780047038000,-11707.62453301,0.00012107,2]
[423306920,1780047038000,-500.0,0.00012107,2]
[423306921,1780047038000,-1473.28893408,0.00012107,2]
[423306930,1780047043000,-1684.99032764,0.00012107,2]
[423306935,1780047045000,-261.48074682,0.00012107,2]
[423306937,1780047046000,-2137.40416177,0.00012107,2]
[423306936,1780047046000,-5394.569,0.00012107,2]
[423306947,1780047367000,-499.99999999,0.00012007,2]
[423306948,1780047392000,-55.42689227,0.00012007,2]
[423306949,1780047443000,-245.56431378,0.00012007,2]
[423306950,1780047445000,-245.56431378,0.00012007,2]
[423306951,1780047449000,150.0,0.00013802,120]
[423306952,1780047477000,2900.0,0.000117,4]
[423306953,1780047479000,5800.0,0.000118,4]
[423306954,1780047481000,8800.0,0.000119,4]
[423306955,1780047517000,1800.0,0.000117,4]
[423306956,1780047519000,3700.0,0.000118,4]
[423306958,1780047521000,399.64066034,0.000119,4]
[423306957,1780047521000,5200.35933966,0.000119,4]
[423306960,1780047641000,182.87,0.00027486,120]
[423306961,1780047643000,182.16,0.00010756,2]
[423306962,1780047872000,500.0,0.0002808,120]
[423306963,1780047884000,500.0,0.0002808,120]
[423306964,1780047898000,500.0,0.0002808,120]
[423306965,1780047911000,500.0,0.0002808,120]
[423306966,1780047931000,1300.0,0.00028,120]
[423306967,1780047936000,1533.67,0.00021,120]
[423306969,1780047972000,274.38285475,0.00028055,120]
[423306968,1780047972000,150.0,0.00028055,120]
[423306970,1780047985000,323.99,0.0002808,120]
[423306971,1780048006000,300.0,0.0002808,120]
[423306972,1780048011000,500.0,0.00028082,120]
[423306973,1780048028000,1000.0,0.00028082,120]
[423306974,1780048036000,3000.0,0.00028082,120]
[423306976,1780048040000,7600.0,0.000117,4]
[423306975,1780048040000,3800.0,0.000116,4]
[423306977,1780048042000,11400.0,0.000118,4]
[423306978,1780048044000,15300.0,0.000119,4]
[423306979,1780048049000,-646.45342331,0.0001199,2]
[423306980,1780048114000,-500.0,0.00011833,2]
[423306981,1780048141000,-153.06,0.00011869,2]
[423306982,1780048143000,1000.0,0.00028081,120]
[423306986,1780048231000,-3418.49307174,0.00011833,2]
[423306990,1780048231000,-325.71888079,0.00011835,2]
[423306987,1780048231000,-11897.89628439,0.00011833,2]
[423306992,1780048231000,-29592.28046958,0.00011835,2]
[423306989,1780048231000,-2799.52247302,0.00011835,2]
[423306988,1780048231000,-1858.85337101,0.00011835,2]
[423306993,1780048231000,-302.92733397,0.00011897,2]
[423306994,1780048231000,-63794.95100323,0.00011907,2]
[423306995,1780048231000,-67560.70670188,0.00011907,2]
[423306996,1780048231000,-156133.72753743,0.00011907,2]
[423306997,1780048231000,-149536.81003342,0.00011907,2]
[423306991,1780048231000,-1197.56241931,0.00011835,2]
[423307079,1780048238000,-176.93548067,0.00011998,2]
[423307083,1780048238000,-500.0,0.00011998,2]
[423307074,1780048238000,-500.0,0.00011998,2]
[423307087,1780048238000,-500.0,0.00011998,2]
[423307091,1780048238000,-500.0,0.00011998,2]
[423307089,1780048238000,-500.0,0.00011998,2]
[423307093,1780048238000,-500.0,0.00011998,2]
[423307097,1780048238000,-500.0,0.00011998,2]
[423307095,1780048238000,-500.0,0.00011998,2]
[423307081,1780048238000,-500.0,0.00011998,2]
[423307075,1780048238000,-500.0,0.00011998,2]
[423307069,1780048238000,-12914.30920234,0.00011997,2]
[423307085,1780048238000,-500.0,0.00011998,2]
[423307071,1780048238000,-330.32150173,0.00011998,2]
[423307073,1780048238000,-500.0,0.00011998,2]
[423307067,1780048238000,-2500.0,0.0001199,2]
[423307065,1780048238000,-24084.3005,0.0001199,2]
[423307059,1780048238000,-1500000.0,0.00011933,2]
[423307063,1780048238000,-133671.98508232,0.0001199,2]
[423307061,1780048238000,-153.06,0.00011935,2]
[423307055,1780048238000,-5392.6989,0.00011833,2]
[423307057,1780048238000,-1014207.02932404,0.00011907,2]
[423307099,1780048238000,-500.0,0.00011998,2]
[423307077,1780048238000,-480.14414772,0.00011998,2]
[423307100,1780048238000,-500.0,0.00011998,2]
[423307126,1780048238000,-500.0,0.00011998,2]
[423307106,1780048238000,-500.0,0.00011998,2]
[423307110,1780048238000,-500.0,0.00011998,2]
[423307155,1780048238000,-1223.22723778,0.00012033,2]
[423307153,1780048238000,-2000.0,0.00012007,2]
[423307151,1780048238000,-4049.16805115,0.00012007,2]
[423307147,1780048238000,-7889.501,0.00012007,2]
[423307145,1780048238000,-15932.42774765,0.00012007,2]
[423307149,1780048238000,-2570.7235,0.00012007,2]
[423307143,1780048238000,-153.06,0.00012001,2]
[423307132,1780048238000,-500.0,0.00011998,2]
[423307130,1780048238000,-500.0,0.00011998,2]
[423307128,1780048238000,-500.0,0.00011998,2]
[423307124,1780048238000,-500.0,0.00011998,2]
[423307141,1780048238000,-500.0,0.00011998,2]
[423307112,1780048238000,-460.58746869,0.00011998,2]
[423307135,1780048238000,-500.0,0.00011998,2]
[423307138,1780048238000,-500.0,0.00011998,2]
[423307122,1780048238000,-500.0,0.00011998,2]
[423307120,1780048238000,-500.0,0.00011998,2]
[423307118,1780048238000,-500.0,0.00011998,2]
[423307116,1780048238000,-500.0,0.00011998,2]
[423307114,1780048238000,-500.0,0.00011998,2]
[423307108,1780048238000,-500.0,0.00011998,2]
[423307102,1780048238000,-500.0,0.00011998,2]
[423307137,1780048238000,-500.0,0.00011998,2]
[423307104,1780048238000,-500.0,0.00011998,2]
[423307239,1780048239000,-500.0,0.00012133,2]
[423307230,1780048239000,-500.0,0.00012133,2]
[423307229,1780048239000,-500.0,0.00012133,2]
[423307223,1780048239000,-500.0,0.00012133,2]
[423307220,1780048239000,-500.0,0.00012133,2]
[423307221,1780048239000,-500.0,0.00012133,2]
[423307232,1780048239000,-500.0,0.00012133,2]
[423307235,1780048239000,-500.0,0.00012133,2]
[423307233,1780048239000,-500.0,0.00012133,2]
[423307242,1780048239000,-500.0,0.00012133,2]
[423307226,1780048239000,-500.0,0.00012133,2]
[423307240,1780048239000,-500.0,0.00012133,2]
[423307264,1780048239000,-500.0,0.00012133,2]
[423307244,1780048239000,-500.0,0.00012133,2]
[423307245,1780048239000,-500.0,0.00012133,2]
[423307249,1780048239000,-500.0,0.00012133,2]
[423307247,1780048239000,-500.0,0.00012133,2]
[423307255,1780048239000,-500.0,0.00012133,2]
[423307256,1780048239000,-500.0,0.00012133,2]
[423307251,1780048239000,-500.0,0.00012133,2]
[423307253,1780048239000,-500.0,0.00012133,2]
[423307258,1780048239000,-500.0,0.00012133,2]
[423307260,1780048239000,-500.0,0.00012133,2]
[423307262,1780048239000,-500.0,0.00012133,2]
[423307217,1780048239000,-500.0,0.00012133,2]
[423307276,1780048239000,-500.0,0.00012133,2]
[423307237,1780048239000,-500.0,0.00012133,2]
[423307218,1780048239000,-500.0,0.00012133,2]
[423307194,1780048239000,-152286.0722119,0.00012132,2]
[423307214,1780048239000,-500.0,0.00012133,2]
[423307279,1780048239000,-500.0,0.00012133,2]
[423307162,1780048239000,-153.06,0.00012066,2]
[423307164,1780048239000,-151.0,0.00012104,2]
[423307157,1780048239000,-306.42650578,0.00012033,2]
[423307159,1780048239000,-250.0,0.0001206,2]
[423307169,1780048239000,-151.0,0.00012104,2]
[423307166,1780048239000,-151.0,0.00012104,2]
[423307171,1780048239000,-151.0,0.00012104,2]
[423307173,1780048239000,-1092.26222106,0.00012106,3]
[423307175,1780048239000,-1176.94101003,0.00012106,3]
[423307177,1780048239000,-150.0,0.00012106,2]
[423307187,1780048239000,-150.0,0.00012119,2]
[423307192,1780048239000,-204.489836,0.0001213,2]
[423307189,1780048239000,-302.92733397,0.00012123,2]
[423307181,1780048239000,-1236.6763523,0.00012107,2]
[423307179,1780048239000,-841.3188791,0.00012107,2]
[423307183,1780048239000,-388.62747933,0.00012107,2]
[423307198,1780048239000,-500.0,0.00012133,2]
[423307200,1780048239000,-14817.6002317,0.00012133,2]
[423307196,1780048239000,-153.06,0.00012132,2]
[423307202,1780048239000,-1305779.2013375,0.00012133,2]
[423307212,1780048239000,-500.0,0.00012133,2]
[423307208,1780048239000,-500.0,0.00012133,2]
[423307210,1780048239000,-500.0,0.00012133,2]
[423307204,1780048239000,-1201.8937239,0.00012133,2]
[423307213,1780048239000,-500.0,0.00012133,2]
[423307206,1780048239000,-8013.8675588,0.00012133,2]
[423307216,1780048239000,-500.0,0.00012133,2]
[423307265,1780048239000,-500.0,0.00012133,2]
[423307185,1780048239000,-500.0,0.00012107,2]
[423307277,1780048239000,-500.0,0.00012133,2]
[423307337,1780048239000,-500.0,0.00012133,2]
[423307340,1780048239000,-500.0,0.00012133,2]
[423307344,1780048239000,-500.0,0.00012133,2]
[423307346,1780048239000,-500.0,0.00012133,2]
[423307351,1780048239000,-500.0,0.00012133,2]
[423307347,1780048239000,-500.0,0.00012133,2]
[423307336,1780048239000,-500.0,0.00012133,2]
[423307349,1780048239000,-500.0,0.00012133,2]
[423307342,1780048239000,-500.0,0.00012133,2]
[423307353,1780048239000,-500.0,0.00012133,2]
[423307385,1780048239000,-549.141911,0.00012133,2]
[423307357,1780048239000,-500.0,0.00012133,2]
[423307355,1780048239000,-500.0,0.00012133,2]
[423307359,1780048239000,-500.0,0.00012133,2]
[423307361,1780048239000,-500.0,0.00012133,2]
[423307363,1780048239000,-500.0,0.00012133,2]
[423307368,1780048239000,-500.0,0.00012133,2]
[423307366,1780048239000,-500.0,0.00012133,2]
[423307371,1780048239000,-151.0,0.00012133,2]
[423307369,1780048239000,-287.87789,0.00012133,2]
[423307373,1780048239000,-151.0,0.00012133,2]
[423307375,1780048239000,-151.0,0.00012133,2]
[423307377,1780048239000,-151.0,0.00012133,2]
[423307380,1780048239000,-151.0,0.00012133,2]
[423307383,1780048239000,-549.141911,0.00012133,2]
[423307387,1780048239000,-549.141911,0.00012133,2]
[423307267,1780048239000,-500.0,0.00012133,2]
[423307334,1780048239000,-500.0,0.00012133,2]
[423307324,1780048239000,-500.0,0.00012133,2]
[423307382,1780048239000,-549.141911,0.00012133,2]
[423307326,1780048239000,-500.0,0.00012133,2]
[423307271,1780048239000,-500.0,0.00012133,2]
[423307330,1780048239000,-500.0,0.00012133,2]
[423307272,1780048239000,-500.0,0.00012133,2]
[423307269,1780048239000,-500.0,0.00012133,2]
[423307284,1780048239000,-500.0,0.00012133,2]
[423307283,1780048239000,-500.0,0.00012133,2]
[423307281,1780048239000,-500.0,0.00012133,2]
[423307286,1780048239000,-500.0,0.00012133,2]
[423307288,1780048239000,-500.0,0.00012133,2]
[423307298,1780048239000,-500.0,0.00012133,2]
[423307290,1780048239000,-500.0,0.00012133,2]
[423307295,1780048239000,-500.0,0.00012133,2]
[423307296,1780048239000,-500.0,0.00012133,2]
[423307293,1780048239000,-500.0,0.00012133,2]
[423307274,1780048239000,-500.0,0.00012133,2]
[423307303,1780048239000,-500.0,0.00012133,2]
[423307292,1780048239000,-500.0,0.00012133,2]
[423307317,1780048239000,-500.0,0.00012133,2]
[423307315,1780048239000,-500.0,0.00012133,2]
[423307307,1780048239000,-500.0,0.00012133,2]
[423307321,1780048239000,-500.0,0.00012133,2]
[423307313,1780048239000,-500.0,0.00012133,2]
[423307311,1780048239000,-500.0,0.00012133,2]
[423307319,1780048239000,-500.0,0.00012133,2]
[423307306,1780048239000,-500.0,0.00012133,2]
[423307300,1780048239000,-500.0,0.00012133,2]
[423307302,1780048239000,-500.0,0.00012133,2]
[423307305,1780048239000,-500.0,0.00012133,2]
[423307309,1780048239000,-500.0,0.00012133,2]
[423307468,1780048240000,-1223.22723772,0.00012511,2]
[423307453,1780048240000,-500.0,0.00012407,2]
[423307455,1780048240000,-211.10573648,0.00012458,2]
[423307459,1780048240000,-150.0,0.00012479,2]
[423307457,1780048240000,-153.06,0.00012461,2]
[423307461,1780048240000,-29290.28,0.00012494,2]
[423307463,1780048240000,-4000.0,0.00012494,2]
[423307472,1780048240000,-4980.59,0.00012591,2]
[423307465,1780048240000,-736.83,0.00012494,2]
[423307441,1780048240000,-1200.0,0.00012381,2]
[423307482,1780048240000,-13888.61939407,0.00012619,2]
[423307478,1780048240000,-351.49216906,0.00012612,2]
[423307474,1780048240000,-153.06,0.00012592,2]
[423307476,1780048240000,-172.0,0.00012599,2]
[423307480,1780048240000,-282.20097234,0.00012612,2]
[423307484,1780048240000,-12914.30920231,0.00012642,2]
[423307486,1780048240000,-15932.42774763,0.0001265,2]
[423307488,1780048240000,-209.09056759,0.00012653,2]
[423307498,1780048240000,-500.0,0.00012658,8]
[423307500,1780048240000,-500.0,0.00012658,9]
[423307503,1780048240000,-500.0,0.00012658,10]
[423307439,1780048240000,-500.0,0.00012381,2]
[423307490,1780048240000,-170.49062066,0.00012655,2]
[423307470,1780048240000,-153.06,0.00012527,2]
[423307437,1780048240000,-150.0,0.00012359,2]
[423307417,1780048240000,-500.0,0.00012306,4]
[423307449,1780048240000,-500.0,0.00012406,3]
[423307494,1780048240000,-500.0,0.00012658,6]
[423307399,1780048240000,-153.06,0.00012198,2]
[423307397,1780048240000,-163.0,0.0001219,2]
[423307389,1780048240000,-151.0,0.00012133,2]
[423307395,1780048240000,-198720.3129896,0.00012134,2]
[423307393,1780048240000,-1128.5658029,0.00012134,2]
[423307401,1780048240000,-150.0,0.00012239,2]
[423307403,1780048240000,-300.77595751,0.00012239,2]
[423307405,1780048240000,-1200.0,0.00012244,2]
[423307407,1780048240000,-153.06,0.00012264,2]
[423307409,1780048240000,-11897.89628439,0.00012271,2]
[423307419,1780048240000,-500.0,0.00012306,5]
[423307413,1780048240000,-500.0,0.00012306,2]
[423307411,1780048240000,-729.6,0.00012286,2]
[423307415,1780048240000,-500.0,0.00012306,3]
[423307421,1780048240000,-500.0,0.00012306,6]
[423307423,1780048240000,-500.0,0.00012306,7]
[423307425,1780048240000,-500.0,0.00012306,8]
[423307427,1780048240000,-500.0,0.00012306,9]
[423307429,1780048240000,-500.0,0.00012306,2]
[423307431,1780048240000,-12914.30920231,0.0001232,2]
[423307433,1780048240000,-15932.42774763,0.00012328,2]
[423307435,1780048240000,-153.06,0.00012329,2]
[423307447,1780048240000,-500.0,0.00012406,2]
[423307445,1780048240000,-153.06,0.00012395,2]
[423307451,1780048240000,-500.0,0.00012406,4]
[423307492,1780048240000,-500.0,0.00012658,5]
[423307443,1780048240000,-300.0,0.00012381,2]
[423307505,1780048240000,-153.06,0.00012658,2]
[423307563,1780048240000,-1158.0,0.00013114,2]
[423307566,1780048240000,-178.0,0.00013114,2]
[423307567,1780048240000,-275.0,0.00013114,2]
[423307560,1780048240000,-1776.0,0.00013041,2]
[423307576,1780048240000,-4000.0,0.00013119,2]
[423307580,1780048240000,-291.0,0.0001314,2]
[423307578,1780048240000,-358.18555075,0.00013137,2]
[423307582,1780048240000,-1869.0,0.0001314,2]
[423307584,1780048240000,-8742.0,0.0001314,2]
[423307586,1780048240000,-9642.0,0.00013148,2]
[423307592,1780048240000,-716.0,0.00013193,2]
[423307570,1780048240000,-1029.0,0.00013114,2]
[423307594,1780048240000,-453.66817145,0.000132,2]
[423307596,1780048240000,-500.0,0.000132,2]
[423307598,1780048240000,-250.0,0.000132,2]
[423307600,1780048240000,-500.0,0.00013229,2]
[423307602,1780048240000,-4344.15,0.00013234,2]
[423307604,1780048240000,-1464.2,0.00013234,2]
[423307606,1780048240000,-150.0,0.00013234,2]
[423307608,1780048240000,-20500.48,0.00013234,2]
[423307610,1780048240000,-2000.0,0.00013234,2]
[423307612,1780048240000,-547.38935281,0.00013245,2]
[423307617,1780048240000,-500.0,0.00013245,2]
[423307614,1780048240000,-405.1634047,0.00013245,2]
[423307590,1780048240000,-755.0,0.00013167,2]
[423307561,1780048240000,-153.06,0.00013053,2]
[423307588,1780048240000,-1069.0,0.00013167,2]
[423307574,1780048240000,-153.06,0.00013119,2]
[423307572,1780048240000,-4349.0,0.00013114,2]
[423307507,1780048240000,-500.0,0.00012681,2]
[423307511,1780048240000,-153.06,0.00012724,2]
[423307509,1780048240000,-11897.89628439,0.00012709,2]
[423307513,1780048240000,-193.0,0.00012735,2]
[423307518,1780048240000,-3168.53,0.00012736,2]
[423307516,1780048240000,-1161.71,0.00012736,2]
[423307524,1780048240000,-153.06,0.0001279,2]
[423307522,1780048240000,-206.53993853,0.00012782,2]
[423307520,1780048240000,-306.83692136,0.00012751,2]
[423307527,1780048240000,-4000.0,0.00012806,2]
[423307529,1780048240000,-250.49,0.00012813,2]
[423307535,1780048240000,-163.54,0.00012851,2]
[423307496,1780048240000,-500.0,0.00012658,7]
[423307558,1780048240000,-492.05,0.00013014,2]
[423307533,1780048240000,-1719.17889684,0.00012842,2]
[423307557,1780048240000,-1223.22723772,0.00012989,2]
[423307555,1780048240000,-153.06,0.00012987,2]
[423307546,1780048240000,-153.06,0.00012921,2]
[423307537,1780048240000,-9794.42,0.00012851,2]